bitfinex-derivatives/quotes_SOLF0:USTF0_20240824
["timestamp","ask_amount","ask_price","bid_price","bid_amount"]
[1724497930906,3.1667,157.82,157.81,0.04121921]
[1724497936906,0.04654019,157.84,157.81,7.82121921]
[1724497937410,0.04654019,157.84,157.81,0.04121921]
[1724497937604,0.04654019,157.84,157.81,7.82121921]
[1724497937802,3.21284019,157.84,157.81,7.82121921]
[1724497941307,0.04654019,157.84,157.81,7.82121921]
[1724497941511,0.04654019,157.84,157.82,7.78]
[1724497945116,0.04654019,157.84,157.82,10.9467]
[1724497945518,0.04654019,157.84,157.83,1.26670473]
[1724497946419,0.04654019,157.84,157.82,10.9467]
[1724497949218,0.04654019,157.84,157.82,7.78]
[1724497949525,0.04654019,157.84,157.83,4.4331642]
[1724497949919,0.04654019,157.84,157.83,12.2131642]
[1724497950320,3.1659,157.86,157.83,12.2131642]
[1724497950623,3.1659,157.86,157.83,10.9465]
[1724497951424,3.20809007,157.86,157.83,10.99504078]
[1724497952629,0.04219007,157.86,157.85,7.78]
[1724497953923,0.04219007,157.86,157.83,2.58604078]
[1724497954116,0.04219007,157.86,157.83,0.04854078]
[1724497955425,3.20819007,157.86,157.83,7.82854078]
[1724497955826,3.20819007,157.86,157.84,1.26657226]
[1724497956023,3.20819007,157.86,157.83,7.82854078]
[1724497956224,3.20819007,157.86,157.84,1.26657954]
[1724497956420,0.04219007,157.86,157.85,7.78]
[1724497958227,0.04219007,157.86,157.85,10.9461]
[1724497959230,0.04219007,157.86,157.85,7.78]
[1724497959434,0.04219007,157.86,157.84,3.1663]
[1724497962835,3.20809007,157.86,157.83,0.04854078]
[1724497963144,0.04219007,157.86,157.83,0.04854078]
[1724497963831,3.1662,157.85,157.83,0.04854078]
[1724497966339,3.20819007,157.86,157.83,0.04854078]
[1724497968859,0.04219007,157.86,157.83,0.04854078]
[1724497969641,3.1663,157.84,157.83,0.04854078]
[1724497970343,3.1661,157.85,157.83,0.04854078]
[1724497970843,3.20819007,157.86,157.83,0.04854078]
[1724497971041,0.04219007,157.86,157.83,0.04854078]
[1724497971342,0.04219007,157.86,157.85,7.78]
[1724497973243,0.04219007,157.86,157.85,12.21271325]
[1724497974776,0.04219007,157.86,157.85,14.00802709]
[1724497974952,0.04219007,157.86,157.85,10.9461]
[1724497975153,0.04219007,157.86,157.85,15.27440344]
[1724497975353,1.2317,157.99,157.87,3.1656]
[1724497975554,7.78,157.96,157.88,7.78]
[1724497976256,2.5732,157.98,157.88,10.9454]
[1724497976456,3.1646,157.93,157.91,0.04524362]
[1724497976658,3.2428283,157.94,157.91,0.04524362]
[1724497977659,0.04284795,157.95,157.91,0.04524362]
[1724497977660,3.1647,157.93,157.91,0.04524362]
[1724497980056,0.04284795,157.95,157.91,0.04524362]
[1724497980556,3.20704795,157.95,157.91,0.04524362]
[1724497984765,3.22462606,158.02,157.94,7.78]
[1724497985057,7.78,158.03,157.96,7.78]
[1724497985263,3.20698233,158.03,157.96,7.78]
[1724497985464,2.6548,158.05,157.98,7.78]
[1724497985755,3.1628,158.02,158.0,0.04602537]
[1724497985950,0.0413164,158.03,158.0,0.04602537]
[1724497986358,0.0413164,158.03,158.0,7.82602537]
[1724497986657,0.0413164,158.03,158.02,7.78]
[1724497987160,0.0413164,158.03,158.01,7.78]
[1724497987455,0.0413164,158.03,158.01,3.1629]
[1724497987662,0.0413164,158.03,158.02,7.78]
[1724497988559,0.0413164,158.03,158.02,19.42]
[1724497990260,3.1617,158.07,158.03,3.1625]
[1724497990460,3.1617,158.07,158.05,19.42]
[1724497990660,2.5927,158.15,158.05,19.42]
[1724497990860,3.1614,158.09,158.05,19.42]
[1724497991252,0.04062981,158.09,158.05,19.42]
[1724497991466,0.04062981,158.09,158.07,19.42]
[1724497992459,0.04062981,158.09,158.08,19.42]
[1724497993059,0.04062981,158.09,158.08,22.5815]
[1724497993260,6.3172,158.23,158.01,1.2764]
[1724497993261,1.16218036,158.18,158.11,19.42]
[1724497993661,1.16218036,158.17,158.11,19.42]
[1724497993861,1.16218036,158.16,158.11,19.42]
[1724497994057,3.10491055,158.19,158.11,19.42]
[1724497994264,0.04836063,158.15,158.13,19.42]
[1724497994566,0.04295008,158.16,158.13,19.42]
[1724497994765,0.04295008,158.16,158.13,19.46383304]
[1724498001070,0.04295008,158.16,158.13,22.62433304]
[1724498001270,0.04295008,158.16,158.13,19.46383304]
[1724498002368,0.04295008,158.16,158.15,19.42]
[1724498002769,0.04295008,158.16,158.13,19.46383304]
[1724498002971,0.04295008,158.16,158.13,0.04383304]
[1724498004270,3.1603,158.14,158.13,0.04383304]
[1724498007272,3.1601,158.15,158.13,0.04383304]
[1724498007974,3.20305008,158.16,158.13,0.04383304]
[1724498008402,3.20305008,158.16,158.13,19.46383304]
[1724498008403,0.04295008,158.16,158.13,19.46383304]
[1724498009370,0.04295008,158.16,158.13,22.62423304]
[1724498010475,0.04295008,158.16,158.14,3.1603]
[1724498011688,55.28789184,158.29,158.15,38.84]
[1724498011872,3.69433179,158.28,158.2,19.42]
[1724498012073,20.58133179,158.27,158.18,19.42]
[1724498012271,1.16133179,158.26,158.18,19.42]
[1724498012677,0.04192299,158.24,158.2,0.04741982]
[1724498013272,3.1588,158.22,158.2,0.04741982]
[1724498016274,3.20032299,158.24,158.2,19.46741982]
[1724498016677,0.04192299,158.24,158.2,19.46741982]
[1724498017980,3.20022299,158.24,158.2,19.46741982]
[1724498018880,3.20022299,158.24,158.21,19.42]
[1724498020380,3.20022299,158.24,158.2,0.04741982]
[1724498020381,0.04192299,158.24,158.23,19.42]
[1724498021280,0.04192299,158.24,158.21,19.42]
[1724498021685,3.1585,158.23,158.21,19.42]
[1724498022374,0.04192299,158.24,158.21,19.42]
[1724498023187,0.04192299,158.24,158.21,22.5789]
[1724498024384,0.04192299,158.24,158.22,3.1587]
[1724498025289,0.04192299,158.24,158.23,3.1585]
[1724498026284,0.04192299,158.24,158.23,22.5785]
[1724498027487,3.1581,158.25,158.23,19.42]
[1724498028187,48.97319184,158.29,158.23,22.5784]
[1724498028188,3.1579,158.27,158.23,22.5784]
[1724498028385,0.04323008,158.27,158.23,19.46428267]
[1724498028585,0.04323008,158.27,158.23,7.80428267]
[1724498029285,3.1579,158.26,158.23,10.96258267]
[1724498030192,3.20093008,158.27,158.24,3.1583]
[1724498031483,0.04323008,158.27,158.25,10.9179]
[1724498032288,0.04323008,158.27,158.26,10.9179]
[1724498033581,3.10870358,158.35,158.28,3.1574]
[1724498033787,7.76,158.36,158.3,7.76]
[1724498033989,1.1605755,158.35,158.3,7.76]
[1724498034485,1.1605755,158.35,158.31,0.04073858]
[1724498034714,0.04077684,158.34,158.31,0.04073858]
[1724498036191,3.1566,158.33,158.31,0.04073858]
[1724498036987,3.1567,158.32,158.31,0.04073858]
[1724498042999,1.16080574,158.32,158.22,20.699]
[1724498043302,1.16080574,158.32,158.22,23.8576]
[1724498043695,3.1579,158.27,158.22,23.8576]
[1724498043921,0.04735301,158.26,158.23,0.04486711]
[1724498045105,3.20525301,158.26,158.23,0.04486711]
[1724498046502,0.04735301,158.26,158.23,0.04486711]
[1724498048105,3.1581,158.25,158.23,0.04486711]
[1724498048408,0.04735301,158.26,158.23,0.04486711]
[1724498051999,3.1583,158.24,158.23,0.04486711]
[1724498056514,3.1591,158.2,158.08,3.1487632]
[1724498056709,3.1591,158.2,158.17,7.77]
[1724498057519,3.20727489,158.2,158.17,7.81036087]
[1724498058111,3.20727489,158.2,158.18,7.77]
[1724498058316,0.04817489,158.2,158.18,7.77]
[1724498058621,0.04817489,158.2,158.18,10.9295]
[1724498059420,0.04817489,158.2,158.18,3.1595]
[1724498059720,0.04817489,158.2,158.19,7.77]
[1724498061823,0.04817489,158.2,158.18,3.1595]
[1724498062023,0.04817489,158.2,158.19,7.77]
[1724498067655,0.04817489,158.2,158.19,10.9293]
[1724498070834,0.04817489,158.2,158.19,7.77]
[1724498071231,0.04817489,158.2,158.19,10.9293]
[1724498071933,0.04817489,158.2,158.19,7.77]
[1724498074924,0.04817489,158.2,158.18,3.1595]
[1724498077736,3.20727489,158.2,158.18,3.1595]
[1724498080051,0.04817489,158.2,158.19,7.77]
[1724498082933,0.04817489,158.2,158.18,3.1594]
[1724498083432,3.20727489,158.2,158.18,3.1594]
[1724498083834,3.1593,158.19,158.17,10.96996087]
[1724498084039,3.1593,158.19,158.17,3.19996087]
[1724498084936,3.1593,158.19,158.17,0.04036087]
[1724498087028,0.04817489,158.2,158.17,0.04036087]
[1724498087637,3.1595,158.18,158.17,0.04036087]
[1724498090338,3.1594,158.19,158.17,7.81036087]
[1724498097843,3.1594,158.19,158.17,10.97006087]
[1724498100543,3.1594,158.19,158.17,0.04036087]
[1724498105550,3.1594,158.19,158.17,10.97006087]
[1724498105844,0.04817489,158.2,158.18,7.77]
[1724498106054,0.04817489,158.2,158.19,7.77]
[1724498106355,0.04817489,158.2,158.19,10.81468229]
[1724498106552,0.04817489,158.2,158.19,7.77]
[1724498106950,0.04817489,158.2,158.19,10.81470049]
[1724498108366,0.04817489,158.2,158.19,7.77]
[1724498108650,3.20727489,158.2,158.19,3.04463631]
[1724498108854,3.20727489,158.2,158.17,10.96986087]
[1724498109152,3.20727489,158.2,158.18,3.04522032]
[1724498109357,3.20727489,158.2,158.17,10.96986087]
[1724498110048,3.20727489,158.2,158.18,3.1595]
[1724498110248,0.04817489,158.2,158.18,3.1595]
[1724498112053,0.04817489,158.2,158.17,10.96996087]
[1724498112355,0.04817489,158.2,158.18,3.04449538]
[1724498112556,0.04817489,158.2,158.17,10.96996087]
[1724498112747,0.04817489,158.2,158.18,3.04425705]
[1724498112947,0.04817489,158.2,158.19,3.04425705]
[1724498114150,0.04817489,158.2,158.19,6.20355705]
[1724498114452,0.04817489,158.2,158.19,13.97355705]
[1724498116554,7.77,158.27,158.21,3.1588]
[1724498116555,3.1584,158.24,158.21,3.1588]
[1724498116753,3.1584,158.24,158.21,10.9288]
[1724498117551,3.20187746,158.24,158.21,10.97021021]
[1724498119357,0.04347746,158.24,158.23,10.9285]
[1724498119755,0.04347746,158.24,158.23,13.96982818]
[1724498121490,0.04347746,158.24,158.23,10.9285]
[1724498121669,0.04347746,158.24,158.23,13.9689865]
[1724498122157,3.1576,158.28,158.25,3.158]
[1724498122363,7.77,158.31,158.25,7.77]
[1724498122866,7.77,158.31,158.2,31.08]
[1724498122867,1.306,158.33,158.27,3.1577]
[1724498123067,7.77,158.33,158.26,7.77]
[1724498123260,0.04437455,158.31,158.28,0.04314498]
[1724498124064,0.04437455,158.31,158.28,3.20054498]
[1724498125360,3.20127455,158.31,158.28,3.20054498]
[1724498126064,0.04437455,158.31,158.29,3.1572]
[1724498126868,0.04437455,158.31,158.28,3.20054498]
[1724498127165,7.81437455,158.31,158.28,0.04314498]
[1724498128092,10.97137455,158.31,158.28,0.04314498]
[1724498128369,7.81437455,158.31,158.28,0.04314498]
[1724498128961,3.1572,158.3,158.28,0.04314498]
[1724498136979,7.81437455,158.31,158.28,0.04314498]
[1724498137171,7.77,158.3,158.28,0.04314498]
[1724498137677,3.1574,158.29,158.28,0.04314498]
[1724498138571,10.9272,158.3,158.28,0.04314498]
[1724498139673,3.1572,158.3,158.28,0.04314498]
[1724498143571,3.1572,158.3,158.28,3.20064498]
[1724498144079,3.20137455,158.31,158.28,3.20064498]
[1724498145779,3.20137455,158.31,158.29,3.1573]
[1724498146376,0.04437455,158.31,158.29,3.1573]
[1724498147276,7.81437455,158.31,158.28,0.04314498]
[1724498147878,3.1572,158.3,158.28,0.04314498]
[1724498153279,3.1574,158.29,158.28,0.04314498]
[1724498154582,3.20390612,158.29,158.2,25.26]
[1724498154781,7.77,158.23,158.2,25.26]
[1724498155089,3.1591,158.21,158.19,66.9060843]
[1724498155280,7.77,158.23,158.15,7.77]
[1724498155487,0.04266746,158.21,158.18,3.1595]
[1724498156088,7.81266746,158.21,158.17,3.20759424]
[1724498156683,3.1595,158.18,158.17,0.04789424]
[1724498157290,10.9295,158.18,158.17,0.04789424]
[1724498157690,3.1604,158.14,158.1,25.26]
[1724498158083,7.77,158.15,158.11,3.1609]
[1724498158690,10.9303,158.15,158.11,3.1609]
[1724498158988,7.81378443,158.15,158.12,3.1607]
[1724498159283,0.04378443,158.15,158.12,3.1607]
[1724498159484,0.04378443,158.15,158.12,7.77]
[1724498160187,0.04378443,158.15,158.13,3.1605]
[1724498160382,0.04378443,158.15,158.12,7.77]
[1724498160783,0.04378443,158.15,158.13,3.1605]
[1724498162086,12.58238417,158.37,158.14,7.77]
[1724498162289,7.77,158.24,158.18,7.77]
[1724498162591,3.1591,158.21,158.18,7.77]
[1724498163185,3.20551203,158.21,158.18,7.81728968]
[1724498167690,3.1592,158.2,158.18,0.04728968]
[1724498167885,0.04641203,158.21,158.18,0.04728968]
[1724498169097,3.20551203,158.21,158.18,0.04728968]
[1724498169395,0.04641203,158.21,158.18,0.04728968]
[1724498170296,0.04641203,158.21,158.18,3.20668968]
[1724498170494,0.04641203,158.21,158.18,10.97668968]
[1724498172498,0.04641203,158.21,158.18,0.04728968]
[1724498172499,3.20541203,158.21,158.18,0.04728968]
[1724498176099,0.04641203,158.21,158.19,7.77]
[1724498176602,0.04641203,158.21,158.19,10.9293]
[1724498177923,0.04641203,158.21,158.2,10.9291]
[1724498178194,2.5409,158.31,158.2,7.77]
[1724498178195,7.77,158.28,158.2,7.77]
[1724498178400,3.1581,158.26,158.22,10.9286]
[1724498178603,7.77,158.28,158.22,10.9286]
[1724498178899,7.77,158.28,158.22,7.77]
[1724498179101,0.04505337,158.27,158.23,0.04174412]
[1724498179695,3.20295337,158.27,158.24,10.9282]
[1724498180196,0.04505337,158.27,158.25,3.1581]
[1724498181233,0.04505337,158.27,158.26,3.158]
[1724498182897,0.04505337,158.27,158.26,10.928]
[1724498183603,0.04505337,158.27,158.26,3.158]
[1724498185105,0.04505337,158.27,158.23,0.04174412]
[1724498186401,3.1581,158.26,158.23,3.20024412]
[1724498190306,3.1582,158.25,158.23,3.20024412]
[1724498190896,3.1582,158.25,158.23,0.04174412]
[1724498191302,3.1582,158.25,158.23,3.20024412]
[1724498191610,3.158,158.26,158.23,3.20024412]
[1724498195102,3.158,158.26,158.23,10.97024412]
[1724498195506,0.04505337,158.27,158.23,0.04174412]
[1724498195709,0.04505337,158.27,158.23,7.81174412]
[1724498195910,3.1581,158.26,158.23,10.97014412]
[1724498196111,0.04505337,158.27,158.23,7.81174412]
[1724498196311,0.04505337,158.27,158.25,7.77]
[1724498196505,3.20295337,158.27,158.25,7.77]
[1724498197214,3.20295337,158.27,158.25,10.9281]
[1724498198605,3.20295337,158.27,158.26,3.158]
[1724498198606,0.04505337,158.27,158.26,3.158]
[1724498200102,0.04505337,158.27,158.25,7.77]
[1724498200509,0.04505337,158.27,158.25,10.928]
[1724498200833,0.04505337,158.27,158.23,7.81174412]
[1724498201503,0.04505337,158.27,158.25,7.77]
[1724498201708,0.04505337,158.27,158.26,3.158]
[1724498202011,0.04505337,158.27,158.26,10.928]
[1724498202814,1.2697,158.36,158.28,3.1575]
[1724498203015,7.77,158.34,158.28,10.9275]
[1724498204210,3.157,158.31,158.29,0.04764255]
[1724498207147,7.77,158.32,158.29,0.04764255]
[1724498207814,3.157,158.31,158.29,0.04764255]
[1724498208610,0.04787386,158.33,158.29,0.04764255]
[1724498208811,7.81787386,158.33,158.29,0.04764255]
[1724498209004,3.157,158.31,158.29,0.04764255]
[1724498210434,7.81787386,158.33,158.29,0.04764255]
[1724498211414,3.1571,158.31,158.29,0.04764255]
[1724498211616,7.77,158.32,158.29,0.04764255]
[1724498211814,3.157,158.31,158.29,0.04764255]
[1724498212015,7.77,158.32,158.29,0.04764255]
[1724498212217,7.77,158.3,158.29,0.04764255]
[1724498213322,10.9272,158.3,158.29,0.04764255]
[1724498223323,3.1582,158.25,158.19,62.36064489]
[1724498223547,7.77,158.26,158.2,7.77]
[1724498224028,7.77,158.26,158.2,10.9291]
[1724498224530,0.04715859,158.25,158.22,0.04014985]
[1724498224729,3.1585,158.24,158.22,0.04014985]
[1724498227428,0.04715859,158.25,158.22,0.04014985]
[1724498227734,10.9286,158.23,158.22,0.04014985]
[1724498232423,3.1599,158.17,158.14,1.2985]
[1724498233129,3.1599,158.17,158.14,4.4588]
[1724498233329,3.1596,158.18,158.14,4.4588]
[1724498233531,0.04236501,158.18,158.14,3.20543925]
[1724498235430,0.04236501,158.18,158.15,3.16]
[1724498235625,0.04236501,158.18,158.15,7.77]
[1724498236225,0.04236501,158.18,158.15,10.93]
[1724498236645,3.20196501,158.18,158.14,0.04513925]
[1724498236837,3.20196501,158.18,158.14,3.20533925]
[1724498238932,3.1598,158.17,158.14,3.20533925]
[1724498239834,3.16,158.16,158.14,0.04513925]
[1724498247551,3.1599,158.17,158.14,10.97543925]
[1724498248853,0.04236501,158.18,158.15,7.77]
[1724498249454,0.04236501,158.18,158.16,3.1598]
[1724498249951,0.04236501,158.18,158.17,3.1597]
[1724498250547,3.1591,158.21,158.18,3.1594]
[1724498251155,3.1592,158.2,158.18,3.1594]
[1724498251757,3.1592,158.2,158.17,10.97621367]
[1724498252755,3.1592,158.2,158.18,3.1595]
[1724498253155,3.20380219,158.21,158.18,3.1595]
[1724498254150,3.1592,158.2,158.18,3.1595]
[1724498255355,3.20380219,158.21,158.18,3.1595]
[1724498259659,3.1592,158.2,158.17,10.97621367]
[1724498259851,7.77,158.19,158.17,0.04651367]
[1724498260055,3.1595,158.18,158.17,0.04651367]
[1724498279875,3.1595,158.19,158.17,0.04651367]
[1724498282673,3.1595,158.18,158.17,0.04651367]
[1724498291181,7.77,158.18,158.09,2.6527]
[1724498291384,7.77,158.15,158.12,3.1607]
[1724498292207,7.81193974,158.15,158.12,3.20449691]
[1724498292599,0.04193974,158.15,158.13,3.1605]
[1724498293792,0.04193974,158.15,158.14,3.1603]
[1724498293991,0.04193974,158.15,158.14,10.9303]
[1724498294885,0.04193974,158.15,158.14,13.98334821]
[1724498295086,0.04193974,158.15,158.14,13.98332915]
[1724498296186,0.04193974,158.15,158.14,13.98335425]
[1724498296596,1.322,158.26,158.15,3.1601]
[1724498296887,3.1597,158.18,158.15,3.1601]
[1724498297593,3.20671025,158.18,158.15,10.97053219]
[1724498298090,0.04701025,158.18,158.15,3.15629043]
[1724498298287,0.04701025,158.18,158.17,7.77]
[1724498300293,0.04701025,158.18,158.17,10.9297]
[1724498300887,0.04701025,158.18,158.17,3.1597]
[1724498301086,0.04701025,158.18,158.16,3.1599]
[1724498301697,0.04701025,158.18,158.17,3.1597]
[1724498310096,0.04701025,158.18,158.17,10.9297]
[1724498310298,0.04701025,158.18,158.17,13.98217487]
[1724498316403,3.1588,158.22,158.19,3.1593]
[1724498316598,3.1588,158.22,158.2,7.77]
[1724498316799,3.1582,158.25,158.21,7.77]
[1724498317101,3.1582,158.25,158.22,3.1586]
[1724498317301,7.77,158.28,158.23,7.77]
[1724498317499,0.04187346,158.25,158.23,7.77]
[1724498317701,3.20395452,158.26,158.23,10.9284]
[1724498318090,0.04585452,158.26,158.24,7.77]
[1724498318596,0.04585452,158.26,158.25,3.1582]
[1724498320604,0.04585452,158.26,158.24,3.1583]
[1724498321295,0.04585452,158.26,158.22,0.04677385]
[1724498321497,7.81585452,158.26,158.22,0.04677385]
[1724498321905,3.1583,158.25,158.22,3.20547385]
[1724498322304,3.1583,158.25,158.22,0.04677385]
[1724498322504,0.04585452,158.26,158.22,0.04677385]
[1724498322803,7.77,158.24,158.22,0.04677385]
[1724498323396,3.1586,158.23,158.22,0.04677385]
[1724498325298,0.04585452,158.26,158.22,0.04677385]
[1724498325903,3.1584,158.24,158.22,0.04677385]
[1724498327806,0.04585452,158.26,158.22,3.20547385]
[1724498328703,0.04585452,158.26,158.23,3.1585]
[1724498328909,0.04585452,158.26,158.23,10.9285]
[1724498329709,0.04585452,158.26,158.24,3.1583]
[1724498330412,0.04585452,158.26,158.24,3.1582]
[1724498333610,3.20385452,158.26,158.23,10.9285]
[1724498335714,0.04585452,158.26,158.22,3.20547385]
[1724498335908,7.77,158.25,158.22,0.04677385]
[1724498336313,0.04585452,158.26,158.22,0.04677385]
[1724498336607,7.77,158.25,158.22,0.04677385]
[1724498336807,3.1584,158.24,158.22,0.04677385]
[1724498337012,7.77,158.23,158.22,0.04677385]
[1724498337211,1.38205452,158.26,158.22,0.04677385]
[1724498337609,10.9286,158.23,158.22,0.04677385]
[1724498338016,3.1586,158.23,158.22,0.04677385]
[1724498341606,0.04585452,158.26,158.22,0.04677385]
[1724498342514,3.1582,158.25,158.22,0.04677385]
[1724498343104,3.1584,158.24,158.22,0.04677385]
[1724498345804,3.1586,158.23,158.22,0.04677385]
[1724498347320,3.1584,158.24,158.22,0.04677385]
[1724498348010,3.1582,158.25,158.22,3.20547385]
[1724498348514,0.04585452,158.26,158.23,7.77]
[1724498349217,3.20385452,158.26,158.24,3.1582]
[1724498356022,0.04585452,158.26,158.24,3.1582]
[1724498358225,3.20395452,158.26,158.23,3.1585]
[1724498359625,0.04585452,158.26,158.22,0.04677385]
[1724498359825,7.77,158.25,158.22,0.04677385]
[1724498360323,3.1584,158.24,158.22,0.04677385]
[1724498360925,3.1586,158.23,158.22,0.04677385]
[1724498367925,3.1592,158.2,158.16,33.03]
[1724498368130,3.1592,158.2,158.16,25.26]
[1724498368630,3.1592,158.2,158.17,3.1597]
[1724498369028,3.20056522,158.2,158.17,3.2070768]
[1724498369225,3.1594,158.19,158.17,0.0473768]
[1724498370021,3.20056522,158.2,158.17,3.2070768]
[1724498370528,3.20056522,158.2,158.17,10.9770768]
[1724498372331,3.20056522,158.2,158.18,7.77]
[1724498375633,3.20056522,158.2,158.17,3.2070768]
[1724498375932,3.20056522,158.2,158.17,10.9770768]
[1724498376337,3.20056522,158.2,158.17,3.2070768]
[1724498376535,3.20056522,158.2,158.17,10.9770768]
[1724498379234,3.1594,158.19,158.18,7.77]
[1724498379434,0.04136522,158.2,158.18,7.77]
[1724498379932,3.20066522,158.2,158.18,7.77]
[1724498380530,0.04136522,158.2,158.18,3.1595]
[1724498380830,0.04136522,158.2,158.19,7.77]
[1724498382139,0.04136522,158.2,158.19,13.98083468]
[1724498384855,0.04136522,158.2,158.19,10.9293]
[1724498385236,0.04136522,158.2,158.19,13.98085698]
[1724498390140,3.1582,158.25,158.22,3.1586]
[1724498390435,1.3366,158.28,158.22,7.77]
[1724498390634,3.1579,158.27,158.24,3.1582]
[1724498390837,3.1579,158.27,158.25,7.77]
[1724498392241,3.1579,158.27,158.25,10.9281]
[1724498393239,3.20391616,158.28,158.25,10.9281]
[1724498394840,0.04631616,158.28,158.26,3.1579]
[1724498395346,0.04631616,158.28,158.26,10.9279]
[1724498395737,0.04631616,158.28,158.27,3.1578]
[1724498396139,0.04631616,158.28,158.27,6.20667941]
[1724498396635,0.04631616,158.28,158.27,13.97667941]
[1724498398346,0.04631616,158.28,158.27,10.9278]
[1724498399941,0.04631616,158.28,158.24,3.94586617]
[1724498400145,0.04631616,158.28,158.25,3.04916889]
[1724498400340,0.04631616,158.28,158.24,0.04216617]
[1724498400542,7.77,158.27,158.24,0.04216617]
[1724498401439,3.1581,158.26,158.24,0.04216617]
[1724498403343,7.77,158.27,158.24,0.04216617]
[1724498403546,3.1582,158.25,158.24,0.04216617]
[1724498404372,3.158,158.26,158.24,0.04216617]
[1724498407247,0.04631616,158.28,158.25,7.77]
[1724498407640,0.04631616,158.28,158.26,3.1578]
[1724498409751,0.04631616,158.28,158.27,3.1578]
[1724498410975,0.04631616,158.28,158.27,10.9278]
[1724498420765,0.04631616,158.28,158.27,3.1578]
[1724498421078,0.04631616,158.28,158.27,10.9278]
[1724498429978,1.2173,158.36,158.31,3.1569]
[1724498430182,1.2173,158.36,158.3,7.77]
[1724498430376,1.2173,158.36,158.32,7.77]
[1724498431204,0.03382973,158.36,158.32,7.81059403]
[1724498431477,0.03382973,158.36,158.33,7.77]
[1724498432383,3.18992973,158.36,158.33,10.9264]
[1724498433283,0.03382973,158.36,158.34,3.1563]
[1724498433585,0.03382973,158.36,158.33,7.77]
[1724498434480,0.03382973,158.36,158.34,7.77]
[1724498435276,7.77,158.45,158.38,7.77]
[1724498435478,3.1543,158.45,158.41,3.1549]
[1724498436281,2.6171,158.48,158.42,3.1546]
[1724498436482,2.6171,158.48,158.42,7.77]
[1724498436986,3.1542,158.45,158.42,7.77]
[1724498437586,3.1542,158.45,158.42,10.9248]
[1724498437987,10.3871,158.48,158.41,0.04615461]
[1724498438196,7.77,158.46,158.41,0.04615461]
[1724498438386,2.6171,158.48,158.41,0.04615461]
[1724498438587,2.6171,158.48,158.39,3.19843785]
[1724498438588,7.77,158.42,158.39,3.19843785]
[1724498438893,7.77,158.4,158.34,44.22550989]
[1724498439088,7.77,158.38,158.34,44.22550989]
[1724498439487,7.81615462,158.38,158.34,44.26583201]
[1724498439685,3.1559,158.37,158.34,44.26583201]
[1724498439888,3.1559,158.37,158.34,47.42213201]
[1724498441391,3.156,158.36,158.34,44.26583201]
[1724498441891,3.1562,158.35,158.34,44.26583201]
[1724498442885,0.04615462,158.38,158.34,52.03583201]
[1724498443902,3.1559,158.37,158.34,52.03583201]
[1724498444396,0.04615462,158.38,158.35,7.77]
[1724498445291,0.04615462,158.38,158.35,10.926]
[1724498445489,0.04615462,158.38,158.35,7.77]
[1724498445889,0.04615462,158.38,158.37,7.77]
[1724498447799,0.04615462,158.38,158.36,3.1558]
[1724498451701,3.20175462,158.38,158.35,10.9261]
[1724498451903,0.04615462,158.38,158.36,7.77]
[1724498452599,0.04615462,158.38,158.36,10.9258]
[1724498457097,0.04615462,158.38,158.36,7.77]
[1724498457303,0.04615462,158.38,158.34,44.26583201]
[1724498457506,0.04615462,158.38,158.36,7.77]
[1724498458301,0.04615462,158.38,158.36,10.926]
[1724498462305,0.04615462,158.38,158.37,3.1558]
[1724498463206,0.04615462,158.38,158.37,10.9258]
[1724498464910,0.04615462,158.38,158.37,3.1558]
[1724498471213,0.04615462,158.38,158.37,10.9258]
[1724498473716,0.04615462,158.38,158.37,3.1558]
[1724498473915,0.04615462,158.38,158.37,10.9258]
[1724498474817,0.04615462,158.38,158.37,7.77]
[1724498476315,0.04615462,158.38,158.37,10.9258]
[1724498480317,3.1548,158.42,158.39,3.1553]
[1724498480517,3.1548,158.42,158.4,7.77]
[1724498482819,3.1548,158.42,158.4,10.9252]
[1724498484412,3.155,158.41,158.39,0.03978839]
[1724498484617,3.18843023,158.47,158.39,7.80978839]
[1724498484820,3.1547,158.43,158.4,3.155]
[1724498485821,3.1547,158.43,158.4,3.1551]
[1724498487918,3.1548,158.42,158.39,7.80978839]